Cogmind - Beta 13 @@@ ROGUE MODE // 2024.03.04 @ 12:33:01 Player: J1ANG-5HI Result: Destroyed by 2I-RPD(R) with Subdweller Laser Performance ------------- Evolutions (0) 0 Regions Visited (2) 400 Robots Destroyed (12) 60 Value Destroyed (312) 312 Prototype IDs (4) 80 Alien Tech Used (0) 0 Bonus (0) 0 TOTAL SCORE: 852 Bonus ------- None Cogmind --------- Core Integrity 0/250 Matter 275/300 Energy 123/125 System Corruption 0% Temperature Cool (6) Movement Treading (480) Ox4 Location -10/Subcaves Parts ------- > --- POWER (1) -------- Light Ion Engine > --- PROPULSION (2) --- Light Treads Compact Wheel > --- UTILITY (2) ------ Huge Storage Unit Hacking Suite > --- WEAPON (2) ------- Beam Cannon > --- INVENTORY (25) --- Light Nuclear Core Light Treads Aluminum Leg Aluminum Leg Improved Heat Sink Medium Battery (150) Large Matter Pod (150) Weight Redist. System Terrain Scanner EM Pulse Gun EM Pulse Gun EM Pulse Gun EM Pulse Gun Light Assault Rifle Grenade Launcher Peak State ------------ > --- POWER ------------ Ion Engine > --- PROPULSION ------- Wheel Compact Wheel > --- UTILITY ---------- Huge Storage Unit Hacking Suite > --- WEAPON ----------- Assault Rifle Light Assault Rifle > --- INVENTORY -------- Light Ion Engine Light Nuclear Core Light Treads Light Treads Aluminum Leg Aluminum Leg Medium Battery Large Matter Pod Weight Redist. System Terrain Scanner EM Pulse Gun EM Pulse Gun EM Pulse Gun EM Pulse Gun Beam Cannon Light Assault Rifle Grenade Launcher [Rating: 11] Favorites ----------- Power Ion Engine Engine Ion Engine Propulsion Wheel Treads Light Treads Leg Aluminum Leg Wheel Wheel Utility Hacking Suite Storage Huge Storage Unit Hackware Hacking Suite Weapon Light Assault Rifle Energy Cannon Beam Cannon Ballistic Gun Light Assault Rifle Build | -11 -10 -10 ------- Run | Yrd Mat Sub Slots Evolved . | . . . Power . | . . . Propulsion . | . . . Utility . | . . . Weapon . | . . . Parts Attached 9 | . 6 3 Power 1 | . . 1 Engine 1 | . . 1 Core . | . . . Reactor . | . . . Propulsion 5 | . 4 1 Treads 2 | . 1 1 Leg . | . . . Wheel 3 | . 3 . Hover . | . . . Flight . | . . . Utility 2 | . 2 . Device . | . . . Storage 1 | . 1 . Processor . | . . . Hackware 1 | . 1 . Protection . | . . . Artifact . | . . . Weapon 1 | . . 1 Energy Gun . | . . . Energy Cannon 1 | . . 1 Ballistic Gun . | . . . Ballistic Cannon . | . . . Launcher . | . . . Special Weapon . | . . . Impact Weapon . | . . . Slashing Weapon . | . . . Piercing Weapon . | . . . Special Melee Weapon . | . . . Unidentified Prototypes . | . . . Parts Lost 4 | . . 4 Power 1 | . . 1 Propulsion 1 | . . 1 Utility . | . . . Weapon 2 | . . 2 Highest Loss Streak 4 | . . 4 To Critical Strikes 1 | . . 1 Average Slot Usage (%) 99 | . 99 98 Engine 14 | . 14 14 Treads 1 | . 1 1 Leg 5 | . 5 . Wheel 21 | . 21 26 Storage 14 | . 14 14 Hackware 13 | . 13 14 Ballistic Gun 27 | . 28 23 Naked Turns . | . . . Heaviest Build 88 | 13 88 88 Greatest Support 26 | 20 26 26 Greatest Overweight (x) 4 | . 4 3 Average Overweight (x) 2 | . 2 3 Largest Inventory Capacity 25 | . 25 25 Average Capacity 21 | . 21 25 Most Carried 18 | . 18 18 Average Carried 12 | . 12 17 Final Capacity 25 | 8 25 25 Final Carried 18 | 6 18 15 Class Distribution -------------------- 100% | Mutant Dominant Class ---------------- Mutant | -10/Materials Mutant | -10/Subcaves Resources | -11 -10 -10 ----------- Run | Yrd Mat Sub Matter Collected 510 | 200 310 . Remotely . | . . . Salvage Created 422 | . 422 . Parts 25 | . 25 . Haulers Intercepted 1 | . 1 . Recyclers Shooed . | . . . Parts Field Recycled . | . . . Retrieved Matter . | . . . Parts Self-Destructed . | . . . Prevented . | . . . Kills | -11 -10 -10 ------- Run | Yrd Mat Sub Combat Hostiles Destroyed 10 | . 10 . Guns 10 | . 10 . Classes Destroyed 4 | . 4 . Hauler 1 | . 1 . Operator 1 | . 1 . Swarmer 3 | . 3 . Grunt 7 | . 7 . Best Kill Streak 4 | . 4 . Combat Bots Only 4 | . 4 . Max Kills in Single Turn 2 | . 2 . Gunslinging 1 | . 1 . Exploded . | . . . Melee . | . . . Uniques/NPCs Destroyed . | . . . Combat | -11 -10 -10 -------- Run | Yrd Mat Sub Hostile Shots Fired 71 | . 47 24 Missed 15 | . 10 5 Damage Taken 818 | . 431 387 Core 250 | . 126 124 Absorbed by Shields . | . . . Core Remaining (%) 100 | 100 . . Volleys Fired 67 | . 56 11 Largest 2 | . 2 2 Hottest 80 | . 40 80 Shots Fired 129 | . 112 17 Gun 121 | . 112 9 Cannon 8 | . . 8 Launcher . | . . . Special . | . . . Kinetic 121 | . 112 9 Thermal 8 | . . 8 Explosive . | . . . Electromagnetic . | . . . Robot Hit Streak 15 | . 10 15 Robot Miss Streak 9 | . 9 1 Penetration Max . | . . . Secondary Targets 7 | . 7 . Max Gunslinging Chain 1 | . 1 . Shots Hit Robots 80 | . 64 16 Core Hits 27 | . 25 2 Critical Kills . | . . . Critical Parts Destroyed . | . . . Critical Strikes . | . . . Melee Attacks . | . . . Impact . | . . . Slashing . | . . . Piercing . | . . . Sneak Attacks . | . . . Combat Hostiles . | . . . Follow-up Attacks . | . . . Damage Inflicted 932 | . 718 214 Guns 792 | . 718 74 Cannons 140 | . . 140 Explosions . | . . . Melee . | . . . Ramming . | . . . Kinetic 792 | . 718 74 Thermal 140 | . . 140 Explosive . | . . . Electromagnetic . | . . . Impact . | . . . Slashing . | . . . Piercing . | . . . Highest Corruption . | . . . Average Corruption . | . . . Corruption Purged . | . . . Corruption Blocked . | . . . Overload Shots . | . . . Overflow Damage . | . . . Projectiles . | . . . Explosions . | . . . Melee . | . . . Knockbacks . | . . . Impact . | . . . Kinetic . | . . . Secondary . | . . . Self-Inflicted Damage . | . . . Shots . | . . . Rammed . | . . . Targets Rammed . | . . . Kicked . | . . . Crushed . | . . . Highest Temperature 30 | . 30 12 Average Temperature 9 | . 10 6 Received Heat Transfer 318 | . 204 114 Siege Activations . | . . . Robots Corrupted . | . . . Combat Hostiles . | . . . Parts Fried . | . . . Impact Corruptions . | . . . Robots Melted . | . . . Combat Hostiles . | . . . Parts Melted . | . . . Heat Transferred 296 | . . 296 Parts Sabotaged . | . . . Parts Stolen . | . . . Parts Stripped . | . . . Power Chain Reactions . | . . . Alert | -11 -10 -10 ------- Run | Yrd Mat Sub Peak Influence 201 | . 201 . Initial . | . . . Average 53 | . 53 . Maximum Alert Level 1 | . 1 . Low Security (%) 92 | . 92 . Level 1 7 | . 7 . Level 2 . | . . . Level 3 . | . . . Level 4 . | . . . Level 5 . | . . . High Security . | . . . Max Security . | . . . Squads Dispatched 1 | . 1 . Investigation 1 | . 1 . Extermination . | . . . Reinforcement . | . . . Assault . | . . . Garrison . | . . . Intercept . | . . . Searches Triggered . | . . . Construction Impeded . | . . . Haulers Reinforced . | . . . Active Scanning Responses . | . . . Cargo Convoy Interrupts . | . . . Stealth | -11 -10 -10 --------- Run | Yrd Mat Sub Distress Signals . | . . . Communications Jammed . | . . . Distress Signals . | . . . Times Spotted 25 | . 22 3 Peak Tracking Total 5 | . 5 3 Tactical Retreats . | . . . Traps | -11 -10 -10 ------- Run | Yrd Mat Sub Traps Triggered 1 | . 1 . Indirectly . | . . . Trap Hack Attempts . | . . . Triggered . | . . . Disarmed . | . . . Reprogrammed . | . . . Reused . | . . . Traps Extracted . | . . . Installed . | . . . Triggered . | . . . Machines | -11 -10 -10 ---------- Run | Yrd Mat Sub Machines Disabled . | . . . Max in Single Turn . | . . . Machines Repaired . | . . . Machines Dismantled . | . . . Machines Sabotaged . | . . . Overloaded Fab Kills . | . . . Hacking | -11 -10 -10 --------- Run | Yrd Mat Sub Machines Accessed 8 | . 8 . Terminals 6 | . 6 . Fabricators . | . . . Repair Stations . | . . . Recycling Units 2 | . 2 . Scanalyzers . | . . . Garrison Access . | . . . Total Hacks 31 | . 31 . Successful 19 | . 19 . Failed 11 | . 11 . Catastrophic 1 | . 1 . Database Lockouts 1 | . 1 . Manual 18 | . 18 . Terminals 21 | . 21 . Fabricators . | . . . Repair Stations . | . . . Recycling Units 10 | . 10 . Scanalyzers . | . . . Garrison Access . | . . . Terminal Hacks 8 | . 8 . Robot Analysis 4 | . 4 . Prototype ID Bank 2 | . 2 . Terminal Index 1 | . 1 . Registered Prototypes 1 | . 1 . Fabricator Hacks . | . . . Repair Station Hacks . | . . . Recycling Unit Hacks 4 | . 4 . Report Inventory 2 | . 2 . Retrieve Matter 1 | . 1 . Retrieve Components 1 | . 1 . Scanalyzer . | . . . Garrison Access Hacks . | . . . Unauthorized Hacks 7 | . 7 . Terminals 3 | . 3 . Botnet 3 | . 3 . Fabricators . | . . . Repair Stations . | . . . Recycling Units 4 | . 4 . Monitor 1 | . 1 . Reject 1 | . 1 . Recyclers 1 | . 1 . Mask 1 | . 1 . Scanalyzers . | . . . Garrison Access . | . . . Data Cores Recovered 1 | . 1 . Used . | . . . Hacking Detections 8 | . 8 . Full Trace Events 1 | . 1 . Feedback Events . | . . . Feedback Blocked . | . . . Robot Schematics Acquired . | . . . Robots Built . | . . . Authchips . | . . . Time . | . . . Total Robot Build Rating . | . . . Part Schematics Acquired . | . . . Parts Built . | . . . Authchips . | . . . Time . | . . . Total Part Build Rating . | . . . Parts Repaired . | . . . Time . | . . . Parts Recycled . | . . . Recycled Matter . | . . . Retrieved Matter 124 | . 124 . Retrieved Components 9 | . 9 . Parts Scanalyzed . | . . . Part Schematics Acquired . | . . . Parts Damaged . | . . . Bothacking | -11 -10 -10 ------------ Run | Yrd Mat Sub Used RIF Installer . | . . . Robots Hacked . | . . . Non-combat . | . . . Combat . | . . . Robot Hacks Applied . | . . . Relay Couplers Released . | . . . Fabnet Peak Effective % . | . . . Robots Rewired . | . . . Allies Hacked . | . . . Hacks Repelled . | . . . Allies | -11 -10 -10 -------- Run | Yrd Mat Sub Total Allies . | . . . Largest Group . | . . . Highest-Rated Group . | . . . Highest-Rated Ally . | . . . Total Orders . | . . . Ally Attacks . | . . . Total Damage . | . . . Kills . | . . . Allies Corrupted . | . . . Allies Melted . | . . . Intel | -11 -10 -10 ------- Run | Yrd Mat Sub Robot Analysis Total 4 | . 4 . Derelict Logs Recovered . | . . . Drone Launches . | . . . Drone Recoveries . | . . . Exploration | -11 -10 -10 ------------- Run | Yrd Mat Sub Turns Passed 1727 | . 1629 98 Spaces Moved 711 | 1 664 46 Core . | . . . Treads 27 | . 27 . Legs 195 | 1 194 . Wheels 489 | . 443 46 Hover . | . . . Flight . | . . . Fastest Speed 120 | 120 120 135 Average Speed 143 | 120 144 135 Slowest Speed 480 | 120 480 135 Overloaded Moves . | . . . Propulsion Burnouts . | . . . Robots Hopped . | . . . Cave-ins Triggered . | . . . Exploration Rate (%) 27 | 2 76 4 Regions Visited 2 Branch Regions 1 Pre-discovered Areas . | . . . Known Exits Taken . | . . . Unknown Exits Taken 2 | 1 1 . Scrap Searched . | . . . Spaces Dug . | . . . Terrain Destroyed . | . . . Melee . | . . . Projectile . | . . . AOE . | . . . Terrain Rammed . | . . . Walls Destroyed . | . . . Machines Disabled . | . . . Actions | -11 -10 -10 --------- Run | Yrd Mat Sub Total 1298 | . 1231 67 Wait 495 | . 488 7 Move 709 | . 663 46 Hop . | . . . Pick Up 15 | . 15 . Fast Attach . | . . . Attach 4 | . 1 3 Detach . | . . . Swap 5 | . 5 . Drop 3 | . 3 . Fire 67 | . 56 11 Melee . | . . . Ram . | . . . Kick . | . . . Crush . | . . . Escape Stasis . | . . . Rewire . | . . . Trap . | . . . Miscellaneous . | . . . Route ------- -11/Scrapyard -10/Materials (discovered 3 exits: [*Mat x2] / [*Sub]) -10/Subcaves (discovered 1 exit: [*Mat]) History --------- Turn | Location | Event 1 | -11/Scrapyard | Discovered new exit (range 0) 1 | -11/Scrapyard | Entered Materials 257 | -10/Materials | Central database locked down 317 | -10/Materials | Build established: Mutant 670 | -10/Materials | Discovered new exit (range 11) 989 | -10/Materials | Discovered new exit (range 13) 1486 | -10/Materials | Core integrity fell below 50% 1622 | -10/Materials | Discovered new exit (range 3) 1630 | -10/Materials | Entered Subcaves 1664 | -10/Subcaves | Discovered new exit (range 8) 1725 | -10/Subcaves | Core integrity fell below 20% 1728 | -10/Subcaves | Destroyed by 2I-RPD(R) with Subdweller Laser Last Messages --------------- 01604_ U-05 Engineer lays Concrete. 01605_ U-05 Engineer builds a Wall. 01606_ >> MONITOR: Recycling Unit M001 accepting Aluminum Leg (96%). 01609_ >> MONITOR: Recycling Unit M001 accepting Aluminum Leg (90%). 01612_ >> MONITOR: Recycling Unit M001 accepting Sml. Laser (85%). 01621_ T-07 Excavator is excavating. 01622_ EXIT=FOUND 01624_ U-05 Engineer lays Concrete. LOCATION=UNKNOWN AMBIENT_HEAT=-10 GOAL=ESCAPE 01664_ EXIT=FOUND 01707_ Assault Rifle destroyed. 01711_ Ion Engine destroyed. 01715_ Wheel destroyed. 01717_ Critical hit (Destroy). 01717_ Lgt. Assault Rifle destroyed. Map ----- +----------------------------------------------------+ | ??????????????????????????????????????? | | ??????????????????????????????????????? | | ??????????????????????????????????????? | | ??????????????????????????????????????? | | ?????????????????????######???????????? | | ?????????????????????? # #???????????? | | ??????????????????????? #?########??? | | ???????????????????????? ?# # ###? | | ????????????????????"??## ## """?? | | ????????????????????"??# ## #???? | | ???????????????????? ???# #???? | | ???????????????????? ???#% ##???? | | ???????????????????? ???#" ##" ###????? | | ???????????????????# #??## #####??????? | | ???????????????????# "???# #?????????? | | ???????????????????# #??## #?????????? | | ??????????????????## #??#" #?????????? | | ??????????????????? ?## ## " "????? | | ???????????????????# ### " """" ????? | | ???????????????????# ## """ "" ????? | | ??????????????????## "" ### "" ????? | | ???????????????#### "" ###?? """????? | | ?????????????### "" ##??? "" ????? | | ?????????????# #< #??? #?? """?? | | ?????????????# R ###### ## """"" | | ?????????????#@#" # # # | | ???????????? R<## # < #???? | | ???????????##### #????? | | ???????????????### ### #????? | | ?????????????????## ##??# #????? | | ??????????????????## ##???? # #????? | | ???????????????????####?????? #???? | | ??????????????????????????????# ##???? | | ???????????????????????????????% ????? | | ???????????????????????????????? #???? | | ????????????????????????????????? #???? | | ??????????????????????????????????#???? | | ??????????????????????????????????????? | | ??????????????????????????????????????? | | ??????????????????????????????????????? | | ??????????????????????????????????????? | | ??????????????????????????????????????? | | ??????????????????????????????????????? | | ??????????????????????????????????????? | | ??????????????????????????????????????? | | ??????????????????????????????????????? | | ??????????????????????????????????????? | | ??????????????????????????????????????? | | ??????????????????????????????????????? | | ??????????????????????????????????????? | +----------------------------------------------------+ Best States ------------- Heat Dissipation 25 Energy Generation 10 Energy Capacity 250 Matter Stores 300 Matter Capacity 300 Sight Range 16 Terrain Scan Density 10 Evasion (%) 55 Recoil Reduction 1 Offensive Hacking 10 Item Schematics ----------------- None Robot Schematics ------------------ None Fabricated ------------ Nothing Alien Tech Used ----------------- None Achievements -------------- None Challenges ------------ None Game ------ Seed CooledChargeWheel Manual? 0 Play Time 00:15:21 Cumulative 175.1 hours Start 2024.03.04 @ 12:18:40 End 2024.03.04 @ 12:33:01 Sessions 1 Manual Loads 0 Difficulty Rogue Special Mode None Game No. 133 Rogue 123 Adventurer 0 Explorer 10 Win Type - Total 3 Types 3/0/0/0/0/0/0/0/0 Lore% 57 Gallery% 68 Achievement% 51 Wizard Run 0 Options --------- Layout 1 ASCII 0 Keyboard 0 Movement Arrows Keybinds 1 Fullscreen 1 Font 24/Smallcaps Map View 50x35 Zoom Use 0% Tactical HUD 1 Map Filters NONE Filters NONE Steam 1 RUN: 8fa1a432-6f05-4d49-8556-e8a337e0cfc9